[Event "Live Chess"]
[Site "Chess.com"]
[Date "2023.05.20"]
[Round "-"]
[White "HoarseyHorsey"]
[Black "ProfPoisson"]
[Result "1-0"]
[WhiteElo "1388"]
[BlackElo "1045"]
[TimeControl "300"]
[EndTime "11:28:25 PDT"]
[Termination "HoarseyHorsey won on time"]

1. d4 {[%clk 0:04:58.9]} 1... e6 {[%clk 0:04:57.2]} 2. c4 {[%clk 0:04:58]} 2...
f5 {[%clk 0:04:53.4]} 3. Nc3 {[%clk 0:04:53.3]} 3... Nf6 {[%clk 0:04:51.7]} 4.
Bg5 {[%clk 0:04:52.3]} 4... Bb4 {[%clk 0:04:50]} 5. e3 {[%clk 0:04:47.6]} 5...
Bxc3+ {[%clk 0:04:47.7]} 6. bxc3 {[%clk 0:04:46.5]} 6... O-O {[%clk 0:04:46.1]}
7. h4 {[%clk 0:04:44.7]} 7... b6 {[%clk 0:04:36.1]} 8. Nf3 {[%clk 0:04:37.4]}
8... Bb7 {[%clk 0:04:34.4]} 9. Bd3 {[%clk 0:04:33.4]} 9... d6 {[%clk 0:04:26.8]}
10. O-O {[%clk 0:04:27]} 10... Qe8 {[%clk 0:04:22.4]} 11. Re1 {[%clk 0:04:23]}
11... Ne4 {[%clk 0:04:15.3]} 12. Bxe4 {[%clk 0:04:19.6]} 12... Bxe4 {[%clk
0:04:12.1]} 13. d5 {[%clk 0:04:13.8]} 13... e5 {[%clk 0:04:08.4]} 14. Nd2 {[%clk
0:03:52.9]} 14... h6 {[%clk 0:04:04.5]} 15. Nxe4 {[%clk 0:03:50.7]} 15... fxe4
{[%clk 0:04:00.7]} 16. Qg4 {[%clk 0:03:45.1]} 16... hxg5 {[%clk 0:03:48]} 17.
hxg5 {[%clk 0:03:43]} 17... Nd7 {[%clk 0:03:27.3]} 18. Qxe4 {[%clk 0:03:40.2]}
18... Nc5 {[%clk 0:03:25.1]} 19. Qg4 {[%clk 0:03:34.9]} 19... Qg6 {[%clk
0:03:11.9]} 20. f3 {[%clk 0:03:24.5]} 20... Rf7 {[%clk 0:03:07.4]} 21. Kf2
{[%clk 0:03:14.6]} 21... Nd3+ {[%clk 0:03:01.6]} 22. Ke2 {[%clk 0:03:11]} 22...
Nxe1 {[%clk 0:02:59]} 23. Rxe1 {[%clk 0:03:10.9]} 23... Qc2+ {[%clk 0:02:52.1]}
24. Kf1 {[%clk 0:03:05.9]} 24... Qxa2 {[%clk 0:02:47.5]} 25. g6 {[%clk
0:03:03.4]} 25... Rf6 {[%clk 0:02:13.3]} 26. Qh5 {[%clk 0:02:49.7]} 26... Kf8
{[%clk 0:02:11.4]} 27. Qh8+ {[%clk 0:02:46.4]} 27... Ke7 {[%clk 0:02:07.4]} 28.
Qxa8 {[%clk 0:02:42.9]} 28... Qxc4+ {[%clk 0:02:05.6]} 29. Kf2 {[%clk
0:02:40.1]} 29... Qxc3 {[%clk 0:01:58.9]} 30. Re2 {[%clk 0:02:37.8]} 30... e4
{[%clk 0:01:52.9]} 31. f4 {[%clk 0:02:31.6]} 31... Rxg6 {[%clk 0:01:50.3]} 32.
Qc8 {[%clk 0:02:24.6]} 32... a5 {[%clk 0:01:33.7]} 33. g4 {[%clk 0:02:14.4]}
33... Rh6 {[%clk 0:01:25.5]} 34. Kg3 {[%clk 0:02:03.7]} 34... a4 {[%clk
0:01:13.9]} 35. g5 {[%clk 0:01:53]} 35... Rg6 {[%clk 0:01:10.5]} 36. Kg4 {[%clk
0:01:42.8]} 36... a3 {[%clk 0:00:55.1]} 37. f5 {[%clk 0:01:40.3]} 37... Rxg5+
{[%clk 0:00:49.5]} 38. Kxg5 {[%clk 0:01:28.2]} 38... Qf6+ {[%clk 0:00:49]} 39.
Kg4 {[%clk 0:01:22.4]} 39... Qc3 {[%clk 0:00:16.1]} 40. Qe6+ {[%clk 0:01:16.4]}
40... Kd8 {[%clk 0:00:12.8]} 41. Qg8+ {[%clk 0:01:13.2]} 41... Kd7 {[%clk
0:00:11.5]} 42. Qxg7+ {[%clk 0:01:09.2]} 42... Qxg7+ {[%clk 0:00:09]} 43. Kf4
{[%clk 0:01:07.6]} 43... Qh6+ {[%clk 0:00:07.6]} 44. Kg4 {[%clk 0:01:06.6]}
44... Qg7+ {[%clk 0:00:06.2]} 45. Kf4 {[%clk 0:01:05.8]} 45... a2 {[%clk
0:00:05.1]} 46. Rxa2 {[%clk 0:01:04]} 46... Qe5+ {[%clk 0:00:04]} 47. Kg4 {[%clk
0:01:02]} 47... Qxd5 {[%clk 0:00:03.9]} 48. Rh2 {[%clk 0:00:59.9]} 48... Qg8+
{[%clk 0:00:02.4]} 49. Kf4 {[%clk 0:00:59.1]} 1-0

[Event "Live Chess"]
[Site "Chess.com"]
[Date "2023.05.20"]
[Round "-"]
[White "Bot_Boy"]
[Black "Albul"]
[Result "0-1"]
[WhiteElo "332"]
[BlackElo "2162"]
[TimeControl "300"]
[EndTime "11:28:27 PDT"]
[Termination "Albul won on time"]

1. Nf3 {[%clk 0:04:57.1]} 1... f5 {[%clk 0:04:56.2]} 2. Nc3 {[%clk 0:04:49.7]}
2... Nf6 {[%clk 0:04:55]} 3. d3 {[%clk 0:04:48.1]} 3... d6 {[%clk 0:04:54.1]} 4.
e4 {[%clk 0:04:46]} 4... g6 {[%clk 0:04:53.7]} 5. e5 {[%clk 0:04:43.5]} 5...
dxe5 {[%clk 0:04:52.3]} 6. Nxe5 {[%clk 0:04:41.6]} 6... Bg7 {[%clk 0:04:51.9]}
7. Bf4 {[%clk 0:04:34.3]} 7... Nh5 {[%clk 0:04:45.1]} 8. Qf3 {[%clk 0:04:16.6]}
8... Qd4 {[%clk 0:04:38.7]} 9. Nb5 {[%clk 0:03:38.3]} 9... Qb4+ {[%clk
0:04:27.6]} 10. Kd1 {[%clk 0:02:49.4]} 10... Qxb5 {[%clk 0:03:42.8]} 11. d4
{[%clk 0:02:24.9]} 11... Qxb2 {[%clk 0:03:36.2]} 12. Rc1 {[%clk 0:02:18.7]}
12... Qxd4+ {[%clk 0:03:32.1]} 13. Bd2 {[%clk 0:01:33.5]} 13... Bxe5 {[%clk
0:03:21.1]} 14. Bb5+ {[%clk 0:01:06.5]} 14... c6 {[%clk 0:03:18.3]} 15. c3
{[%clk 0:00:39.6]} 15... Qe4 {[%clk 0:03:05.6]} 16. Qxe4 {[%clk 0:00:36.2]}
16... fxe4 {[%clk 0:03:04.2]} 17. Be2 {[%clk 0:00:32.9]} 17... Nf4 {[%clk
0:03:01.4]} 18. Rg1 {[%clk 0:00:26.3]} 18... Nxe2 {[%clk 0:02:48.7]} 19. Kxe2
{[%clk 0:00:22.6]} 19... O-O {[%clk 0:02:45.8]} 20. Bh6 {[%clk 0:00:16.2]} 20...
Rd8 {[%clk 0:02:43.2]} 21. Ke3 {[%clk 0:00:10.1]} 21... Bf5 {[%clk 0:02:38.3]}
22. g4 {[%clk 0:00:07.2]} 22... Rd3+ {[%clk 0:02:36.7]} 23. Ke2 {[%clk
0:00:05.4]} 23... Be6 {[%clk 0:02:35.9]} 24. Be3 {[%clk 0:00:01.7]} 24... Na6
{[%clk 0:02:31]} 0-1

[Event "Live Chess"]
[Site "Chess.com"]
[Date "2023.05.20"]
[Round "-"]
[White "alexlines8"]
[Black "Tilbs_12"]
[Result "0-1"]
[WhiteElo "1255"]
[BlackElo "1578"]
[TimeControl "300"]
[EndTime "11:28:30 PDT"]
[Termination "Tilbs_12 won by resignation"]

1. e4 {[%clk 0:04:57.6]} 1... c6 {[%clk 0:04:58.6]} 2. d4 {[%clk 0:04:55.1]}
2... d5 {[%clk 0:04:57.4]} 3. f3 {[%clk 0:04:54.4]} 3... dxe4 {[%clk 0:04:48.8]}
4. fxe4 {[%clk 0:04:54.3]} 4... e5 {[%clk 0:04:47.5]} 5. Nf3 {[%clk 0:04:50.6]}
5... Bg4 {[%clk 0:04:31.7]} 6. Be3 {[%clk 0:04:45.9]} 6... Nf6 {[%clk
0:04:19.2]} 7. Nc3 {[%clk 0:04:38.7]} 7... Bb4 {[%clk 0:04:16]} 8. Qd2 {[%clk
0:04:29.5]} 8... Nxe4 {[%clk 0:04:12.5]} 9. Qd3 {[%clk 0:04:20.4]} 9... Nxc3
{[%clk 0:04:09.7]} 10. bxc3 {[%clk 0:04:18.3]} 10... Bxf3 {[%clk 0:03:44.1]} 11.
gxf3 {[%clk 0:04:05.6]} 11... Ba5 {[%clk 0:03:39.4]} 12. Bh3 {[%clk 0:03:55.6]}
12... O-O {[%clk 0:03:37.3]} 13. Rg1 {[%clk 0:03:51.1]} 13... Re8 {[%clk
0:03:17.6]} 14. Bh6 {[%clk 0:03:43.8]} 14... Qh4+ {[%clk 0:03:15.1]} 15. Ke2
{[%clk 0:03:29.7]} 15... Qxh6 {[%clk 0:03:13.4]} 16. Bf5 {[%clk 0:03:25]} 16...
exd4+ {[%clk 0:03:08.9]} 17. Kf2 {[%clk 0:03:22.1]} 17... g6 {[%clk 0:03:08]}
18. Qxd4 {[%clk 0:03:15.2]} 18... Bb6 {[%clk 0:03:04.3]} 0-1

[Event "Live Chess"]
[Site "Chess.com"]
[Date "2023.05.20"]
[Round "-"]
[White "martynstanley"]
[Black "ethiebear"]
[Result "1-0"]
[WhiteElo "1031"]
[BlackElo "808"]
[TimeControl "300"]
[EndTime "11:28:36 PDT"]
[Termination "martynstanley won by checkmate"]

1. d4 {[%clk 0:04:59.5]} 1... Nf6 {[%clk 0:04:57.6]} 2. e3 {[%clk 0:04:58.9]}
2... e6 {[%clk 0:04:54.6]} 3. Bd3 {[%clk 0:04:58.1]} 3... d5 {[%clk 0:04:52.7]}
4. c3 {[%clk 0:04:57.5]} 4... Bd6 {[%clk 0:04:49.6]} 5. f4 {[%clk 0:04:56.7]}
5... O-O {[%clk 0:04:43.5]} 6. Nf3 {[%clk 0:04:55.9]} 6... Nbd7 {[%clk
0:04:38.2]} 7. O-O {[%clk 0:04:54.8]} 7... b6 {[%clk 0:04:36.3]} 8. Ne5 {[%clk
0:04:54]} 8... Bb7 {[%clk 0:04:18.4]} 9. Rf3 {[%clk 0:04:52.1]} 9... Ng4 {[%clk
0:04:13.2]} 10. Rh3 {[%clk 0:04:49.8]} 10... Qf6 {[%clk 0:03:46]} 11. Qxg4
{[%clk 0:04:43.9]} 11... Bxe5 {[%clk 0:03:38.3]} 12. fxe5 {[%clk 0:04:39.6]}
12... Nxe5 {[%clk 0:03:36.3]} 13. dxe5 {[%clk 0:04:37.9]} 13... Qxe5 {[%clk
0:03:34.8]} 14. Bxh7+ {[%clk 0:04:33.3]} 14... Kh8 {[%clk 0:03:22.8]} 15. Bg6+
{[%clk 0:04:30.4]} 15... Kg8 {[%clk 0:03:18.5]} 16. Qh5 {[%clk 0:04:27.8]} 16...
fxg6 {[%clk 0:03:14]} 17. Qh7+ {[%clk 0:04:26.2]} 17... Kf7 {[%clk 0:03:10.9]}
18. Rf3+ {[%clk 0:04:25.2]} 18... Ke8 {[%clk 0:03:04.2]} 19. Qxg6+ {[%clk
0:04:19.6]} 19... Rf7 {[%clk 0:02:58.2]} 20. Qxf7+ {[%clk 0:04:17.2]} 20... Kd8
{[%clk 0:02:52.2]} 21. Qf8+ {[%clk 0:04:07.2]} 21... Kd7 {[%clk 0:02:46.8]} 22.
Qf7+ {[%clk 0:04:06]} 22... Kd6 {[%clk 0:02:41.4]} 23. b3 {[%clk 0:04:03.4]}
23... d4 {[%clk 0:02:37.4]} 24. Ba3+ {[%clk 0:04:01.2]} 24... c5 {[%clk
0:02:34.3]} 25. cxd4 {[%clk 0:03:59.7]} 25... Qd5 {[%clk 0:02:24.1]} 26. Qf4+
{[%clk 0:03:55.3]} 26... e5 {[%clk 0:02:16.8]} 27. dxe5+ {[%clk 0:03:53.6]}
27... Ke6 {[%clk 0:02:09.9]} 28. Nc3 {[%clk 0:03:51.1]} 28... Qd3 {[%clk
0:01:53.6]} 29. Rd1 {[%clk 0:03:46.1]} 29... Qe2 {[%clk 0:01:49.9]} 30. Qf5+
{[%clk 0:03:43.9]} 30... Ke7 {[%clk 0:01:33.4]} 31. Nxe2 {[%clk 0:03:42.8]}
31... Bxf3 {[%clk 0:01:30.4]} 32. Qf4 {[%clk 0:03:41.4]} 32... Rf8 {[%clk
0:01:26.8]} 33. Qxf8+ {[%clk 0:03:38.2]} 33... Kxf8 {[%clk 0:01:24.2]} 34. gxf3
{[%clk 0:03:37.5]} 34... g5 {[%clk 0:01:21]} 35. Kg2 {[%clk 0:03:36.1]} 35...
Kg7 {[%clk 0:01:18.4]} 36. Kg3 {[%clk 0:03:35.3]} 36... Kg6 {[%clk 0:01:18]} 37.
Kg4 {[%clk 0:03:34.4]} 37... Kh6 {[%clk 0:01:14.8]} 38. f4 {[%clk 0:03:33.6]}
38... Kg6 {[%clk 0:01:09]} 39. fxg5 {[%clk 0:03:32.2]} 39... Kg7 {[%clk
0:01:01.9]} 40. Nf4 {[%clk 0:03:31.1]} 40... Kg8 {[%clk 0:01:00.6]} 41. g6
{[%clk 0:03:30.3]} 41... Kg7 {[%clk 0:00:58.9]} 42. Kg5 {[%clk 0:03:28.3]} 42...
Kh8 {[%clk 0:00:57]} 43. h4 {[%clk 0:03:26.7]} 43... Kg8 {[%clk 0:00:54.5]} 44.
h5 {[%clk 0:03:26]} 44... Kg7 {[%clk 0:00:53]} 45. h6+ {[%clk 0:03:24.7]} 45...
Kf8 {[%clk 0:00:50]} 46. Rd8+ {[%clk 0:03:24.2]} 46... Ke7 {[%clk 0:00:47.8]}
47. Ra8 {[%clk 0:03:23]} 47... Kd7 {[%clk 0:00:42.2]} 48. Rxa7+ {[%clk
0:03:21.4]} 48... Kc6 {[%clk 0:00:37.8]} 49. h7 {[%clk 0:03:20.5]} 49... Kb5
{[%clk 0:00:35.3]} 50. h8=Q {[%clk 0:03:17.9]} 50... Kc6 {[%clk 0:00:25.3]} 51.
Qe8# {[%clk 0:03:16.2]} 1-0

[Event "Live Chess"]
[Site "Chess.com"]
[Date "2023.05.20"]
[Round "-"]
[White "Singapourfeuj"]
[Black "WilliamofOrange16th"]
[Result "1-0"]
[WhiteElo "2241"]
[BlackElo "1880"]
[TimeControl "300"]
[EndTime "11:28:42 PDT"]
[Termination "Singapourfeuj won by resignation"]

1. e4 {[%clk 0:04:59.8]} 1... d6 {[%clk 0:04:59]} 2. d4 {[%clk 0:04:58.8]} 2...
Nf6 {[%clk 0:04:57.9]} 3. Nc3 {[%clk 0:04:58.1]} 3... Nbd7 {[%clk 0:04:56.5]} 4.
Bc4 {[%clk 0:04:56.8]} 4... e5 {[%clk 0:04:55.7]} 5. Nf3 {[%clk 0:04:55.8]} 5...
Be7 {[%clk 0:04:55.2]} 6. O-O {[%clk 0:04:54.6]} 6... O-O {[%clk 0:04:54.3]} 7.
a4 {[%clk 0:04:53.5]} 7... c6 {[%clk 0:04:53.8]} 8. h3 {[%clk 0:04:52.3]} 8...
a5 {[%clk 0:04:53.4]} 9. Re1 {[%clk 0:04:51.3]} 9... Nb6 {[%clk 0:04:52.5]} 10.
Bb3 {[%clk 0:04:50.1]} 10... Nfd7 {[%clk 0:04:51.6]} 11. dxe5 {[%clk 0:04:48.3]}
11... Nxe5 {[%clk 0:04:50.2]} 12. Nxe5 {[%clk 0:04:47.2]} 12... dxe5 {[%clk
0:04:50.1]} 13. Be3 {[%clk 0:04:46.2]} 13... Qc7 {[%clk 0:04:47.1]} 14. Qf3
{[%clk 0:04:44.3]} 14... Be6 {[%clk 0:04:45.2]} 15. Bxe6 {[%clk 0:04:41.6]}
15... fxe6 {[%clk 0:04:45.1]} 16. Qg4 {[%clk 0:04:40.8]} 16... Qc8 {[%clk
0:04:37.8]} 17. Bxb6 {[%clk 0:04:39.1]} 1-0

[Event "Live Chess"]
[Site "Chess.com"]
[Date "2023.05.20"]
[Round "-"]
[White "Ocelot32"]
[Black "Doge_Dandolo"]
[Result "1-0"]
[WhiteElo "1428"]
[BlackElo "2051"]
[TimeControl "300"]
[EndTime "11:28:43 PDT"]
[Termination "Ocelot32 won by checkmate"]

1. e4 {[%clk 0:04:56.9]} 1... c6 {[%clk 0:04:58.7]} 2. Nf3 {[%clk 0:04:55.1]}
2... d5 {[%clk 0:04:58.1]} 3. Nc3 {[%clk 0:04:54.4]} 3... Bg4 {[%clk 0:04:55.5]}
4. h3 {[%clk 0:04:51.8]} 4... Bxf3 {[%clk 0:04:54.8]} 5. Qxf3 {[%clk 0:04:50.6]}
5... e6 {[%clk 0:04:54]} 6. exd5 {[%clk 0:04:49.3]} 6... cxd5 {[%clk 0:04:52.4]}
7. d4 {[%clk 0:04:48.3]} 7... Nc6 {[%clk 0:04:51]} 8. Ne2 {[%clk 0:04:44.5]}
8... Bd6 {[%clk 0:04:47.3]} 9. c3 {[%clk 0:04:43.4]} 9... Qc7 {[%clk 0:04:45.5]}
10. Bf4 {[%clk 0:04:38.2]} 10... Nf6 {[%clk 0:04:41.9]} 11. Bxd6 {[%clk
0:04:36.8]} 11... Qxd6 {[%clk 0:04:40.7]} 12. Ng3 {[%clk 0:04:30.4]} 12... O-O
{[%clk 0:04:38.5]} 13. Bd3 {[%clk 0:04:28.8]} 13... Rab8 {[%clk 0:04:35]} 14.
O-O {[%clk 0:04:25.3]} 14... b5 {[%clk 0:04:33.4]} 15. a3 {[%clk 0:04:16.2]}
15... a5 {[%clk 0:04:32.1]} 16. Nh5 {[%clk 0:03:59.3]} 16... Nxh5 {[%clk
0:04:19.2]} 17. Qxh5 {[%clk 0:03:58.1]} 17... g6 {[%clk 0:04:18.5]} 18. Qg5
{[%clk 0:03:52.1]} 18... b4 {[%clk 0:04:12.3]} 19. axb4 {[%clk 0:03:45.1]} 19...
axb4 {[%clk 0:04:11.6]} 20. Rfb1 {[%clk 0:03:33.8]} 20... bxc3 {[%clk
0:03:58.7]} 21. bxc3 {[%clk 0:03:31.4]} 21... Rxb1+ {[%clk 0:03:52.3]} 22. Rxb1
{[%clk 0:03:30.3]} 22... Qc7 {[%clk 0:03:47]} 23. h4 {[%clk 0:03:22.1]} 23...
Rc8 {[%clk 0:03:33.1]} 24. h5 {[%clk 0:03:19.7]} 24... Qd8 {[%clk 0:03:31.3]}
25. Qg3 {[%clk 0:03:10.3]} 25... Na5 {[%clk 0:03:24.9]} 26. h6 {[%clk
0:03:05.8]} 26... Rxc3 {[%clk 0:03:12.5]} 27. Rb8 {[%clk 0:02:36.6]} 27... Rc8
{[%clk 0:03:09.5]} 28. Qe5 {[%clk 0:02:29]} 28... f6 {[%clk 0:03:08]} 29. Qxe6+
{[%clk 0:02:26.2]} 29... Kf8 {[%clk 0:03:05.9]} 30. Rxc8 {[%clk 0:02:24.9]}
30... Qxc8 {[%clk 0:03:04.4]} 31. Qxc8+ {[%clk 0:02:23.8]} 31... Kf7 {[%clk
0:03:02.6]} 32. Qc7+ {[%clk 0:02:20.3]} 32... Ke6 {[%clk 0:03:00.9]} 33. Qxa5
{[%clk 0:02:19.3]} 33... f5 {[%clk 0:02:53.3]} 34. f4 {[%clk 0:02:13.7]} 34...
Kf6 {[%clk 0:02:51.6]} 35. g3 {[%clk 0:02:12.3]} 35... g5 {[%clk 0:02:48.2]} 36.
Qxd5 {[%clk 0:02:10.1]} 36... gxf4 {[%clk 0:02:47]} 37. gxf4 {[%clk 0:02:07.1]}
37... Kg6 {[%clk 0:02:46.4]} 38. Qe5 {[%clk 0:02:02.6]} 38... Kxh6 {[%clk
0:02:42.4]} 39. Qf6+ {[%clk 0:01:49.8]} 39... Kh5 {[%clk 0:02:40.9]} 40. Qg5#
{[%clk 0:01:48.8]} 1-0

[Event "Live Chess"]
[Site "Chess.com"]
[Date "2023.05.20"]
[Round "-"]
[White "wot-not"]
[Black "Hacker_2009"]
[Result "0-1"]
[WhiteElo "1460"]
[BlackElo "1928"]
[TimeControl "300"]
[EndTime "11:28:46 PDT"]
[Termination "Hacker_2009 won by checkmate"]

1. e4 {[%clk 0:04:54.5]} 1... c5 {[%clk 0:04:59.2]} 2. f4 {[%clk 0:04:53.6]}
2... d6 {[%clk 0:04:58.2]} 3. Nf3 {[%clk 0:04:52.8]} 3... Nf6 {[%clk 0:04:53.6]}
4. e5 {[%clk 0:04:51.7]} 4... dxe5 {[%clk 0:04:23.3]} 5. fxe5 {[%clk 0:04:48.6]}
5... Nd5 {[%clk 0:04:23]} 6. d4 {[%clk 0:04:39]} 6... cxd4 {[%clk 0:04:21.7]} 7.
Bd3 {[%clk 0:04:34.8]} 7... e6 {[%clk 0:04:20.2]} 8. O-O {[%clk 0:04:33.6]} 8...
Be7 {[%clk 0:04:15.7]} 9. Na3 {[%clk 0:04:23.6]} 9... Nc6 {[%clk 0:04:11.3]} 10.
Nc4 {[%clk 0:04:18.8]} 10... O-O {[%clk 0:04:04.7]} 11. Bd2 {[%clk 0:04:10.4]}
11... a6 {[%clk 0:04:02.2]} 12. Rc1 {[%clk 0:04:04.6]} 12... b5 {[%clk
0:04:00.7]} 13. Na3 {[%clk 0:04:03.9]} 13... Bb7 {[%clk 0:04:00.2]} 14. Nb1
{[%clk 0:03:51.9]} 14... Ncb4 {[%clk 0:03:57.8]} 15. Bxb4 {[%clk 0:03:42.2]}
15... Nxb4 {[%clk 0:03:56.5]} 16. Nbd2 {[%clk 0:03:40.6]} 16... Nxa2 {[%clk
0:03:54.2]} 17. Ra1 {[%clk 0:03:39.9]} 17... Nb4 {[%clk 0:03:54.1]} 18. Be4
{[%clk 0:03:37.5]} 18... Bxe4 {[%clk 0:03:52.3]} 19. Nxe4 {[%clk 0:03:36.6]}
19... Qd5 {[%clk 0:03:51.8]} 20. Neg5 {[%clk 0:03:21.9]} 20... h6 {[%clk
0:03:48.7]} 21. Nh3 {[%clk 0:03:20.3]} 21... Rac8 {[%clk 0:03:46.6]} 22. Nf4
{[%clk 0:03:18.8]} 22... Qc5 {[%clk 0:03:44.3]} 23. Qxd4 {[%clk 0:03:06.4]}
23... Qxd4+ {[%clk 0:03:39.1]} 24. Nxd4 {[%clk 0:03:05.5]} 24... Nxc2 {[%clk
0:03:38.8]} 25. Nxc2 {[%clk 0:03:04.1]} 25... Rxc2 {[%clk 0:03:37.4]} 26. Rxa6
{[%clk 0:03:02.6]} 26... Bg5 {[%clk 0:03:36.5]} 27. Nd3 {[%clk 0:02:49.5]} 27...
Rd8 {[%clk 0:03:33.5]} 28. Nb4 {[%clk 0:02:47.1]} 28... Rxb2 {[%clk 0:03:31.5]}
29. Nc6 {[%clk 0:02:45.7]} 29... Rdd2 {[%clk 0:03:29.2]} 30. Rfa1 {[%clk
0:02:34.4]} 30... Rxg2+ {[%clk 0:03:27.8]} 31. Kf1 {[%clk 0:02:33.7]} 31... Rxh2
{[%clk 0:03:26.1]} 32. Ra8+ {[%clk 0:02:29.2]} 32... Kh7 {[%clk 0:03:24.6]} 33.
Rf8 {[%clk 0:02:21.2]} 33... Rh1# {[%clk 0:03:23.4]} 0-1

[Event "Live Chess"]
[Site "Chess.com"]
[Date "2023.05.20"]
[Round "-"]
[White "PantherCal"]
[Black "DRS44"]
[Result "0-1"]
[WhiteElo "1814"]
[BlackElo "1437"]
[TimeControl "300"]
[EndTime "11:28:48 PDT"]
[Termination "DRS44 won by resignation"]

1. e4 {[%clk 0:04:58.5]} 1... e5 {[%clk 0:04:51.5]} 2. Nf3 {[%clk 0:04:56.8]}
2... d5 {[%clk 0:04:47.7]} 3. exd5 {[%clk 0:04:52.4]} 3... Bd6 {[%clk
0:04:43.3]} 4. Nc3 {[%clk 0:04:49.7]} 4... f5 {[%clk 0:04:33.9]} 5. d3 {[%clk
0:04:44.1]} 5... Nf6 {[%clk 0:04:25.2]} 6. Bg5 {[%clk 0:04:39.1]} 6... h6 {[%clk
0:04:19.4]} 7. Bxf6 {[%clk 0:04:31.6]} 7... Qxf6 {[%clk 0:04:13.6]} 8. Qd2
{[%clk 0:04:27.4]} 8... O-O {[%clk 0:04:07.8]} 9. O-O-O {[%clk 0:04:25.8]} 9...
Qg6 {[%clk 0:03:56.6]} 10. h4 {[%clk 0:04:22.9]} 10... e4 {[%clk 0:03:50.9]} 11.
dxe4 {[%clk 0:04:20.6]} 11... fxe4 {[%clk 0:03:47.7]} 12. Nd4 {[%clk 0:04:17.7]}
12... Bf4 {[%clk 0:03:36.2]} 0-1

[Event "Live Chess"]
[Site "Chess.com"]
[Date "2023.05.20"]
[Round "-"]
[White "SavagePawn7"]
[Black "Delacorta"]
[Result "1-0"]
[WhiteElo "765"]
[BlackElo "1392"]
[TimeControl "300"]
[EndTime "11:29:01 PDT"]
[Termination "SavagePawn7 won by resignation"]

1. e4 {[%clk 0:04:56.5]} 1... e6 {[%clk 0:04:57]} 2. d4 {[%clk 0:04:52]} 2... d5
{[%clk 0:04:56.1]} 3. c4 {[%clk 0:04:50.2]} 3... dxe4 {[%clk 0:04:54.1]} 4. d5
{[%clk 0:04:47.2]} 4... exd5 {[%clk 0:04:52.3]} 5. cxd5 {[%clk 0:04:46]} 5...
Nf6 {[%clk 0:04:50.9]} 6. Nc3 {[%clk 0:04:44.2]} 6... Bb4 {[%clk 0:04:47.6]} 7.
Qa4+ {[%clk 0:04:42.5]} 7... Qd7 {[%clk 0:04:36.9]} 8. Qxb4 {[%clk 0:04:40.7]}
8... Nxd5 {[%clk 0:04:35.7]} 9. Nxd5 {[%clk 0:04:36.1]} 9... Qxd5 {[%clk
0:04:34]} 10. Bc4 {[%clk 0:04:28.2]} 10... Qc6 {[%clk 0:03:58.8]} 11. Bb5 {[%clk
0:04:20.3]} 1-0

[Event "Live Chess"]
[Site "Chess.com"]
[Date "2023.05.20"]
[Round "-"]
[White "Richardallis"]
[Black "olahgito"]
[Result "1-0"]
[WhiteElo "1685"]
[BlackElo "730"]
[TimeControl "300"]
[EndTime "11:29:01 PDT"]
[Termination "Richardallis won by checkmate"]

1. d4 {[%clk 0:04:58.3]} 1... d5 {[%clk 0:04:59.4]} 2. Nf3 {[%clk 0:04:56.5]}
2... Bg4 {[%clk 0:04:57.2]} 3. Bg5 {[%clk 0:04:51.4]} 3... f6 {[%clk 0:04:53.3]}
4. Bh4 {[%clk 0:04:50.2]} 4... Nc6 {[%clk 0:04:51.9]} 5. c3 {[%clk 0:04:47]}
5... e5 {[%clk 0:04:49]} 6. dxe5 {[%clk 0:04:43.2]} 6... Bxf3 {[%clk 0:04:48.5]}
7. exf3 {[%clk 0:04:40.2]} 7... Nxe5 {[%clk 0:04:47.9]} 8. Nd2 {[%clk 0:04:36]}
8... Ng6 {[%clk 0:04:39.4]} 9. Bg3 {[%clk 0:04:33.9]} 9... Bd6 {[%clk
0:04:35.9]} 10. Bd3 {[%clk 0:04:30]} 10... Bxg3 {[%clk 0:04:32.9]} 11. hxg3
{[%clk 0:04:27.9]} 11... N8e7 {[%clk 0:04:32.5]} 12. Qe2 {[%clk 0:04:23.3]}
12... O-O {[%clk 0:04:28.3]} 13. O-O-O {[%clk 0:04:17]} 13... Re8 {[%clk
0:04:27.1]} 14. Qe6+ {[%clk 0:04:15.2]} 14... Kh8 {[%clk 0:04:21.3]} 15. Rxh7+
{[%clk 0:04:13.4]} 15... Kxh7 {[%clk 0:04:19.9]} 16. Rh1# {[%clk 0:04:12.7]} 1-0